[Event "Krakow Championship-A 2022"]
[Site "Krakow"]
[Date "2022.06.28"]
[Round "5.7"]
[White "Balaji Sekar"]
[Black "Rozentalis, Eduardas"]
[Result "1/2-1/2"]
[ECO "C02"]
[WhiteElo "1189"]
[BlackElo "2523"]
[Annotator "TA"]
[PlyCount "102"]
[EventDate "2022.06.25"]
[EventType "swiss"]
[EventCountry "POL"]
[SourceTitle "playchess.com"]
[Source "ChessBase"]
[SourceQuality "1"]
[TimeControl "40/5400+30:1800+30"]

{[%evp 10,102,29,9,13,-17,12,-27,8,6,7,6,14,11,17,9,14,0,16,0,29,32,50,22,24,15,15,14,18,14,15,15,22,0,24,14,14,0,15,15,15,0,15,4,15,15,18,18,19,15,22,16,16,18,19,13,7,10,12,6,22,14,6,8,155,169,243,0,300,276,229,200,976,69,69,70,70,8,8,8,8,8,8,0,0,0,0,0,0,0,0,0,0,0,0]} 1. e4 {[%emt 0:00:04]} e6 {[%emt 0:00:22]} 2. d4 {[%emt 0:00:13]} d5 {[%emt 0:00:04]} 3. e5 {[%emt 0:00:06]} c5 {[%emt 0:00:19]} 4. c3 {[%emt 0:00:03]} Bd7 {[%emt 0:01:04]} 5. Nf3 {[%emt 0:00:08]} Qb6 {[%emt 0:00:08]} 6. Bd3 {[%emt 0:00:10]} cxd4 {[%emt 0:00:16] C02: French: Advance Variation.} 7. O-O {[%emt 0:05:24] [#]} Ne7 $146 {[%emt 0:01:50]} ({Predecessor:} 7... Nc6 8. Re1 Nge7 9. h4 h6 10. h5 Rc8 11. Nbd2 dxc3 12. bxc3 Na5 13. Rb1 Qc7 14. Nb3 Nxb3 15. axb3 {1-0 (44) Shevchenko,K (2652)-Rustemov,A (2525) Chess.com INT 2022}) 8. Re1 {[%emt 0:02:19]} Bb5 {[%emt 0:03:14] Black has an edge.} 9. Bxb5+ {[%emt 0:04:41]} Qxb5 {[%emt 0:00:16]} 10. Nxd4 {[%emt 0:00:04]} Qd7 {[%emt 0:00:52]} 11. Nd2 {[%emt 0:11:57]} Nec6 {[%emt 0:01:19]} 12. Nxc6 {[%emt 0:08:24]} Nxc6 {[%emt 0:00:53]} 13. Qg4 {[%emt 0:00:11]} h5 {[%emt 0:05:25]} 14. Qf4 {[%emt 0:01:19]} O-O-O {[%emt 0:05:23]} 15. Nf3 {[%emt 0:02:34]} Bc5 {[%emt 0:02:02][%cal Of7f6]} 16. Be3 {[%emt 0:13:45]} Bxe3 {[%emt 0:00:37]} 17. Qxe3 {[%emt 0:01:40]} Kb8 {[%emt 0:00:26]} 18. Rad1 {[%emt 0:04:59]} Qe7 {[%emt 0:03:41]} 19. Nd4 {[%emt 0:01:19]} Nxd4 {[%emt 0:01:15]} 20. Rxd4 {[%emt 0:00:49]} Rd7 {[%emt 0:00:11]} 21. Ra4 {[%emt 0:03:50]} b6 {[%emt 0:00:54]} 22. h4 {[%emt 0:02:34]} Rc8 {[%emt 0:03:28]} 23. Rd1 {[%emt 0:00:25]} Qc5 {[%emt 0:03:29]} 24. Qe2 {[%emt 0:00:14]} g6 {[%emt 0:00:44]} 25. Rad4 {[%emt 0:00:13]} Rdc7 {[%emt 0:00:42]} 26. Qf3 {[%emt 0:00:58]} Qe7 {[%emt 0:04:33]} 27. Rf4 {[%emt 0:01:40]} Rd7 {[%emt 0:00:35]} 28. Rdd4 {[%emt 0:00:21][%cal Bd1d4,Bd4f4,Bf4f7][%mdl 32]} Rcc7 {[%emt 0:00:38]} 29. Rf6 {[%emt 0:01:21]} Qd8 {[%emt 0:07:22]} 30. Rdf4 {[%emt 0:01:32][%cal Rf6f7]} d4 $1 {[%emt 0:00:51]} 31. cxd4 {[%emt 0:01:07]} (31. Rxf7 Rxf7 32. Rxf7 Rxf7 33. Qxf7 d3 $15) 31... Rxd4 {[%emt 0:02:23]} 32. Rxf7 {[%emt 0:01:19]} Rd1+ {[%emt 0:04:27]} 33. Kh2 {[%emt 0:01:18] Black must now prevent Rf8.} Rxf7 {[%emt 0:00:15]} 34. Rxf7 {[%emt 0:02:06][%csl Gf7][%cal Rf3b7]} Qxh4+ {[%emt 0:00:14]} 35. Qh3 {[%emt 0:00:01]} Qxh3+ {[%emt 0:05:43]} 36. Kxh3 $11 {[%emt 0:00:34][%mdl 4096] Endgame Strongly threatening f4. KR-KR} Rd2 {[%emt 0:00:04]} (36... g5 $1 $11 {remains equal.}) 37. f4 $1 $16 {[%emt 0:03:00][%cal Bf2f4,Bf4f5][%mdl 32] And now Rf6 would win.} Rxb2 {[%emt 0:01:06] [#]} (37... Kc8 $142) 38. Re7 $2 {[%emt 0:01:30]} ({Only move:} 38. Rf6 $1 $18) 38... Rxa2 $2 {[%emt 0:01:29][%mdl 8192]} (38... Rb4 $11) 39. Rxe6 $18 {[%emt 0:00:06]} b5 {[%emt 0:00:53] Threatens to win with ...Ra4.} 40. Rxg6 {[%emt 0:00:34]} b4 $2 {[%emt 0:00:25] [#]} (40... Rf2) 41. e6 $2 {[%emt 0:30:46]} (41. g4 b3 42. Rg8+ Kc7 43. Rg7+ Kc6 44. Rg6+ (44. gxh5 $2 b2 $19) 44... Kc5 $19) (41. f5 $1 $18 {[%cal Rf5f6]}) 41... Kc7 $1 $14 {[%emt 0:41:20]} 42. f5 $1 {[%emt 0:01:23]} Kd6 $1 {[%emt 0:00:30]} 43. Rg7 {[%emt 0:10:12]} ({Better is} 43. Rg8 $1 $14 b3 44. Rg7) 43... Re2 $1 $11 {[%emt 0:00:21] The position is equal.} 44. Rxa7 {[%emt 0:00:00] aiming for f6.} (44. Kh4 {feels hotter.} b3 45. Rb7 b2 46. e7) 44... Ke5 {[%emt 0:00:00]} 45. Ra5+ {[%emt 0:00:00]} Kf6 {[%emt 0:00:00]} 46. g4 {[%emt 0:01:24]} hxg4+ {[%emt 0:00:00]} 47. Kxg4 {[%emt 0:00:06]} b3 {[%emt 0:00:00]} 48. Ra7 {[%emt 0:04:44]} Re4+ {[%emt 0:00:00]} 49. Kf3 {[%emt 0:00:07]} Re5 {[%emt 0:00:00]} 50. Kg4 {[%emt 0:02:26][%csl Ge6][%cal Ra7f7]} Re4+ {[%emt 0:00:00]} 51. Kf3 {[%emt 0:00:16]} Re5 {[%emt 0:00:00] Weighted Error Value: White=0.23 (precise) /Black=0.21 (precise)} 1/2-1/2

[Event "Krakow Championship-A 2022"]
[Site "Krakow"]
[Date "2022.06.28"]
[Round "5.8"]
[White "Murphy, Conor E"]
[Black "Klimkowski, Jan"]
[Result "0-1"]
[ECO "B90"]
[WhiteElo "2395"]
[BlackElo "2401"]
[Annotator "TA"]
[PlyCount "88"]
[EventDate "2022.06.25"]
[EventType "swiss"]
[EventCountry "POL"]
[SourceTitle "playchess.com"]
[Source "ChessBase"]
[SourceQuality "1"]
[TimeControl "40/5400+30:1800+30"]

{[%evp 15,88,4,4,8,16,0,0,0,20,28,38,25,25,23,26,22,24,18,35,31,26,26,41,47,82,27,31,20,47,33,31,7,22,22,23,16,12,0,17,-16,-18,-18,-16,-27,-22,-187,-178,-181,-172,-168,-167,-174,-168,-143,-148,-260,-173,-166,-175,-340,-154,-170,-157,-222,-248,-279,-196,-252,-242,-247,-250,-1247,-1179,-29990,-5306]} 1. e4 {[%emt 0:07:41]} c5 {[%emt 0:00:10]} 2. Nf3 {[%emt 0:00:20]} d6 {[%emt 0:00:06]} 3. d4 {[%emt 0:00:46]} cxd4 {[%emt 0:00:15]} 4. Nxd4 {[%emt 0:00:07]} Nf6 {[%emt 0:00:14]} 5. Nc3 {[%emt 0:00:08]} a6 {[%emt 0:00:05]} 6. Be3 {[%emt 0:00:36]} e5 {[%emt 0:00:36]} 7. Nf3 {[%emt 0:00:32]} Qc7 {[%emt 0:01:12]} 8. a4 {[%emt 0:00:50]} Be6 {[%emt 0:01:28]} 9. Ng5 {[%emt 0:01:08] B90: Sicilian Najdorf: Unusual White 6th moves, 6 Be3 Ng4 and 6 Be3 e5.} Bd7 {[%emt 0:01:39]} 10. Nd5 {[%emt 0:00:56]} Nxd5 {[%emt 0:04:14]} 11. exd5 {[%emt 0:00:13] [#] The position is equal.} h6 $146 {[%emt 0:10:27]} ({Predecessor:} 11... Be7 12. a5 O-O 13. Bd3 h6 14. Ne4 f5 15. Nd2 e4 16. Be2 Be8 17. Nb3 Nd7 {½-½ (39) Do Amaral,R (1887)-Konstantinov,M (2188) LSS email 2011}) 12. Ne4 {[%emt 0:03:06]} Be7 {[%emt 0:02:38]} 13. h4 {[%emt 0:08:47]} Bf5 {[%emt 0:06:31]} 14. Bd3 {[%emt 0:00:34][%cal Oe4d6]} Bxe4 {[%emt 0:02:51]} (14... Bh7 {seems wilder.} 15. Qg4 Kf8 16. Ng3 Nd7) 15. Bxe4 {[%emt 0:00:20]} Nd7 {[%emt 0:00:04]} 16. a5 {[%emt 0:00:27]} Nf6 {[%emt 0:03:46]} 17. Bf3 {[%emt 0:05:24]} h5 {[%emt 0:18:06]} 18. c3 {[%emt 0:06:34]} g6 {[%emt 0:04:10]} 19. Be2 {[%emt 0:10:36]} O-O {[%emt 0:01:55]} 20. c4 {[%emt 0:11:11]} (20. g4 $16) 20... Qd7 $11 {[%emt 0:02:43]} 21. b4 {[%emt 0:02:50]} Qf5 {[%emt 0:02:44]} 22. Qb1 {[%emt 0:09:53]} e4 {[%emt 0:01:00]} 23. Bd4 {[%emt 0:03:54]} Rae8 {[%emt 0:02:26][%cal Ba8e8,Be8e5,Be5e7][%mdl 32]} 24. Ra3 {[%emt 0:02:47]} Nd7 {[%emt 0:01:48]} 25. Qb2 {[%emt 0:06:02]} Bd8 {[%emt 0:03:50]} 26. Re3 {[%emt 0:03:25]} Ne5 {[%emt 0:01:21]} 27. Bxe5 {[%emt 0:03:40]} (27. Qb1 {is interesting.} Ng4 28. Bxg4 Qxg4 29. Rg3) 27... Rxe5 {[%emt 0:00:06]} 28. g3 {[%emt 0:01:24]} Bf6 {[%emt 0:00:19][%cal Oe5d5]} 29. Qb3 {[%emt 0:01:10]} Re7 {[%emt 0:00:32] And now ...Bd4 would win.} 30. Bf1 $2 {[%emt 0:01:15] Loses the game.} (30. Qd1 $11 {and White is okay.}) 30... Bd4 $19 {[%emt 0:01:52]} 31. Bh3 {[%emt 0:00:18]} Qf6 {[%emt 0:02:27]} 32. Re2 {[%emt 0:02:46]} e3 {[%emt 0:00:26]} 33. f4 {[%emt 0:04:09]} Bc3+ {[%emt 0:00:16]} 34. Kf1 {[%emt 0:00:20]} Qd4 {[%emt 0:00:14] Black is more active.} 35. c5 {[%emt 0:02:33]} (35. Kg2 $17) 35... Bxb4 {[%emt 0:02:32]} 36. cxd6 {[%emt 0:00:42]} Bxd6 $40 {[%emt 0:00:20][%mdl 128] Black goes for the king.} 37. Kg2 $2 {[%emt 0:00:16] [#]} (37. Kg1 {only move.}) 37... Bb4 {[%emt 0:02:26]} (37... g5 $1 $19 {[%cal Rg5f4] has better winning chances.} 38. hxg5 Qe4+ 39. Kh2 Qf3) 38. Kh2 {[%emt 0:01:04]} Bxa5 {[%emt 0:02:14][%cal Bb4a5,Ba5c7,Bc7g3][%mdl 32]} 39. f5 {[%emt 0:00:32]} (39. Rd1 $17 Bd2 40. d6 Qxd6 41. Rxe3 Rxe3 42. Qxe3 Bxe3 43. Rxd6) 39... Bc7 {[%emt 0:10:07] Strongly threatening ...Re4.} 40. fxg6 {[%emt 0:00:33]} Kg7 {[%emt 0:00:12]} 41. Rhe1 {[%emt 0:13:57]} (41. Qa3 {was necessary.} Re4 42. Qa1) 41... fxg6 {[%emt 0:07:50]} 42. Rxe3 {[%emt 0:01:41]} Rf2+ {[%emt 0:03:04]} 43. Bg2 $2 {[%emt 0:03:35] [#]} (43. Kh1 Rxe3 44. Qxe3 Qxd5+ 45. Kg1) 43... Bxg3+ $1 {[%emt 0:01:24][%mdl 512]} 44. Kg1 {[%emt 0:09:06]} (44. Rxg3 Rxe1) 44... Rff7 {[%emt 0:00:33] Weighted Error Value: White=0.68/Black=0.13 (very precise)} (44... Rd2 $142 45. R1e2 Rxe2 46. Qc3 Bf2+ 47. Kh2 Bxe3 48. Qxd4+ Bxd4 49. d6 Rf7 50. d7 Rf1 51. Kh3 Re3+ 52. Bf3 Rf2 53. d8=Q Rexf3#) 0-1

[Event "Krakow Championship-A 2022"]
[Site "Krakow"]
[Date "2022.06.28"]
[Round "5.10"]
[White "Kozak, Antoni"]
[Black "Sieber, Fiona"]
[Result "1-0"]
[ECO "A04"]
[WhiteElo "2459"]
[BlackElo "2264"]
[Annotator "TA"]
[PlyCount "125"]
[EventDate "2022.06.25"]
[EventType "swiss"]
[EventCountry "POL"]
[SourceTitle "playchess.com"]
[Source "ChessBase"]
[SourceQuality "1"]
[TimeControl "40/5400+30:1800+30"]

{[%evp 22,125,18,26,19,8,14,0,0,0,0,-25,0,0,0,0,0,0,25,39,30,22,21,18,18,22,61,59,60,58,37,18,19,19,19,19,19,19,41,39,30,0,0,0,26,14,46,9,103,0,76,0,96,101,96,96,96,96,96,96,96,22,24,0,96,96,96,96,121,121,202,202,203,37,296,175,235,192,1841,1160,1079,1013,816,1175,1078,1179,2568,2154,2009,1652,1831,1421,6201,1747,29967,29966,29970,29971,29967,29972,29983,29984,29983,29980,29980,29981]} 1. Nf3 {[%emt 0:00:03]} c5 {[%emt 0:00:04]} 2. c4 {[%emt 0:00:13]} Nc6 {[%emt 0:00:11]} 3. Nc3 {[%emt 0:00:08]} g6 {[%emt 0:00:16]} 4. e3 {[%emt 0:00:18]} Nf6 {[%emt 0:00:45][%cal Bg8f6,Bf6d5,Bd5c3][%mdl 32]} 5. d4 {[%emt 0:00:08]} cxd4 {[%emt 0:01:02]} 6. exd4 {[%emt 0:00:06]} d5 {[%emt 0:00:18]} 7. cxd5 {[%emt 0:00:04]} Nxd5 {[%emt 0:00:05]} 8. Qb3 {[%emt 0:00:03]} Nxc3 {[%emt 0:00:06]} 9. Bc4 {[%emt 0:00:03]} Nd5 {[%emt 0:00:09]} 10. Bxd5 {[%emt 0:00:05]} e6 {[%emt 0:00:02]} 11. Bxc6+ {[%emt 0:00:34]} bxc6 {[%emt 0:00:05]} 12. O-O {[%emt 0:04:21][%cal Bh1f1,Bf1c1,Bc1c7][%mdl 32]} Be7 {[%emt 0:00:20] A35: Symmetrical English: 2 Nc3 Nc6 3 Nf3.} 13. Bf4 {[%emt 0:32:11][%cal Bc1f4,Bf4g3,Bg3d6][%mdl 32]} Qd5 {[%emt 0:00:17]} 14. Qxd5 {[%emt 0:00:14]} cxd5 {[%emt 0:02:48] The position is equal.} 15. Rfc1 {[%emt 0:00:15]} f6 {[%emt 0:05:29]} 16. Rc7 {[%emt 0:13:58]} g5 {[%emt 0:03:18]} 17. Rac1 {[%emt 0:01:30]} Bd7 {[%emt 0:08:10]} 18. Bg3 {[%emt 0:03:58]} Bd8 {[%emt 0:09:06][%cal Be7d8,Bd8b6,Bb6d4][%mdl 32]} 19. Rb7 {[%emt 0:00:40]} Bb6 {[%emt 0:00:24] [#]} 20. Bd6 $146 {[%emt 0:09:55]} ({Predecessor:} 20. Bb8 Ke7 21. Bxa7 Rxa7 22. Rxb6 Rxa2 23. h4 g4 24. Nh2 Rc8 25. Re1 Rc2 26. Nxg4 Rcxb2 27. Rxb2 Rxb2 {½-½ (34) Christiansen,L (2585)-Short,N (2430) Hastings 1982}) 20... g4 {[%emt 0:04:40]} 21. Nd2 {[%emt 0:00:18][%cal Bf3d2,Bd2b3,Bb3c5][%mdl 32]} Bxd4 {[%emt 0:00:26]} 22. Nb3 {[%emt 0:04:42]} Bb6 {[%emt 0:04:34]} 23. Nc5 {[%emt 0:03:02]} Rd8 {[%emt 0:10:35]} 24. Bc7 {[%emt 0:05:40] White is much more active. The black rooks are badly placed.} ({Much weaker is} 24. Nxd7 Rxd7 25. Rc8+ Bd8 26. Rxd8+ Rxd8 $11) (24. b4 {seems wilder.} e5 25. a4 h5 26. a5) 24... Bxc7 {[%emt 0:00:05]} 25. Rxc7 {[%emt 0:00:03]} a5 $1 {[%emt 0:12:34]} 26. Ra7 {[%emt 0:00:11]} (26. Nxd7 Rxd7 27. Rc8+ Rd8 $17) 26... Rc8 {[%emt 0:03:43]} 27. Rxa5 {[%emt 0:01:32]} Ke7 {[%emt 0:02:44]} 28. Ra7 {[%emt 0:05:59]} Rhd8 {[%emt 0:00:14]} 29. a4 {[%emt 0:02:02]} ({Much worse is} 29. b4 Ra8 30. Rc7 Rxa2 $17) 29... Ra8 {[%emt 0:02:05]} 30. Rb7 {[%emt 0:00:26]} Kd6 {[%emt 0:05:38]} 31. Rb6+ {[%emt 0:00:45]} Ke7 {[%emt 0:00:01]} 32. Rb7 {[%emt 0:00:17]} Kd6 {[%emt 0:00:03]} 33. b3 $36 {[%emt 0:05:32][%mdl 2048] White is more active.} e5 {[%emt 0:03:11]} 34. Kf1 {[%emt 0:02:52]} d4 {[%emt 0:07:40]} (34... Bc6 $11) 35. Ke1 {[%emt 0:01:15]} ({Better is} 35. Rb6+ $1 $16 Ke7 36. Nxd7 Kxd7 37. Rcc6) 35... h5 {[%emt 0:05:27]} (35... Rab8 $11 {keeps the balance.}) 36. Kd2 {[%emt 0:01:28]} (36. Rb6+ $16 Ke7 37. Nxd7 Kxd7 38. Rcc6) 36... Bc6 {[%emt 0:02:01]} (36... Rab8 $1 $11) 37. Rb6 $1 $16 {[%emt 0:01:15]} Kc7 {[%emt 0:03:02][%csl LRb6,LRg2] [#]} 38. Nd7 {[%emt 0:00:05]} Kxd7 {[%emt 0:00:11]} 39. Rcxc6 {[%emt 0:00:05][%mdl 4096] Endgame KRR-KRR} Rdb8 {[%emt 0:04:54]} 40. Rd6+ {[%emt 0:00:58]} Ke7 {[%emt 0:00:07]} 41. Re6+ {[%emt 0:30:58]} (41. Rxf6 $16 {Hoping for Rbe6+.} Rxb6 42. Rxb6) 41... Kd7 $11 {[%emt 0:30:06]} 42. Red6+ {[%emt 0:00:00]} (42. Rxf6 $11 Rxb6 43. Rxb6) 42... Ke7 $16 {[%emt 0:00:00]} 43. Rxf6 {[%emt 0:00:00]} Rxb6 {[%emt 0:00:00]} 44. Rxb6 {[%emt 0:00:00] KR-KR} Rf8 {[%emt 0:00:00]} 45. Ke2 {[%emt 0:00:00] And now a5 would win.} Rc8 {[%emt 0:00:00] [#]} (45... d3+ $16 {might work better.} 46. Kxd3 Rxf2) 46. a5 $1 $18 {[%emt 0:00:00]} Rc2+ {[%emt 0:00:00]} 47. Ke1 $2 {[%emt 0:00:00]} (47. Kd3 $18 Rxf2 48. a6) 47... d3 {[%emt 0:00:00][%mdl 8192] [#] Loses the game.} (47... Rc1+ $14 48. Kd2 Ra1) 48. a6 {[%emt 0:00:00]} (48. Rb4 $142 $1) 48... Re2+ {[%emt 0:00:00]} (48... Ra2 $142 49. Rh6 Kf7) 49. Kd1 {[%emt 0:00:00]} Rxf2 $2 {[%emt 0:00:00]} (49... Ra2 50. Rh6 Kf7) 50. Rb4 {[%emt 0:00:00]} Rf8 {[%emt 0:00:00]} 51. Kd2 {[%emt 0:00:00]} Kd6 {[%emt 0:00:00]} 52. Kxd3 {[%emt 0:00:00]} Ra8 {[%emt 0:00:00]} 53. Ra4 {[%emt 0:00:00]} Ra7 {[%emt 0:00:00]} 54. g3 {[%emt 0:00:00]} Kc7 {[%emt 0:00:12]} 55. Ke4 {[%emt 0:00:00]} Kb8 {[%emt 0:00:22]} 56. b4 {[%emt 0:00:00]} Rd7 {[%emt 0:02:09]} 57. b5 {[%emt 0:00:00] White wants to mate with b6.} Rd2 {[%emt 0:01:05]} 58. b6 {[%emt 0:00:00] White mates.} Rb2 {[%emt 0:00:34]} 59. b7 {[%emt 0:00:00]} Ka7 {[%emt 0:00:03]} 60. Kxe5 {[%emt 0:00:00]} Rxh2 {[%emt 0:01:15]} 61. Rb4 {[%emt 0:00:00]} Re2+ {[%emt 0:00:09]} 62. Kf4 {[%emt 0:00:00]} Re8 {[%emt 0:02:12]} 63. b8=Q+ {[%emt 0:00:00] Weighted Error Value: White=0.21 (precise) /Black=0.38} 1-0

[Event "Krakow Championship-A 2022"]
[Site "Krakow"]
[Date "2022.06.28"]
[Round "5.11"]
[White "Pniaczek, Marek"]
[Black "Seemann, Jakub"]
[Result "0-1"]
[ECO "B47"]
[WhiteElo "2298"]
[BlackElo "2363"]
[Annotator "TA"]
[PlyCount "104"]
[EventDate "2022.06.25"]
[EventType "swiss"]
[EventCountry "POL"]
[SourceTitle "playchess.com"]
[Source "ChessBase"]
[SourceQuality "1"]
[TimeControl "40/5400+30:1800+30"]

{[%evp 24,104,45,46,69,54,62,63,66,49,67,47,49,52,89,97,101,97,94,101,100,100,98,77,87,87,69,69,124,50,62,21,14,12,134,4,4,4,4,4,81,8,68,68,96,0,0,0,0,0,0,0,101,6,94,6,15,9,12,-47,-47,-80,-80,-109,-57,-57,-45,-298,-298,-298,-298,-416,-413,-410,-368,-364,-362,-360,-354,-660,-639,-668,-659]} 1. e4 {[%emt 0:00:03]} c5 {[%emt 0:00:04]} 2. Nf3 {[%emt 0:00:03]} e6 {[%emt 0:00:06]} 3. d4 {[%emt 0:00:03]} cxd4 {[%emt 0:00:05]} 4. Nxd4 {[%emt 0:00:03]} Nc6 {[%emt 0:00:07]} 5. Nc3 {[%emt 0:01:12]} Qc7 {[%emt 0:00:05]} 6. g3 {[%emt 0:00:10]} a6 {[%emt 0:00:23]} 7. Bg2 {[%emt 0:00:06]} Nf6 {[%emt 0:00:09]} 8. O-O {[%emt 0:00:06]} Nxd4 {[%emt 0:00:02]} 9. Qxd4 {[%emt 0:00:05]} Bc5 {[%emt 0:00:03]} 10. Bf4 {[%emt 0:00:10]} d6 {[%emt 0:00:06]} 11. Qd2 {[%emt 0:00:07]} h6 {[%emt 0:00:06]} 12. Rad1 {[%emt 0:00:16]} e5 {[%emt 0:00:04]} 13. Be3 {[%emt 0:00:04]} Bxe3 {[%emt 0:00:04] B47: Sicilian: Taimanov: 5 Nc3 Qc7 6 f4, 6 g3 and 6 Be2.} 14. fxe3 {[%emt 0:03:57]} Be6 {[%emt 0:00:05]} 15. Qxd6 {[%emt 0:02:14]} Rc8 {[%emt 0:00:08] White is slightly better.} 16. h3 {[%emt 0:10:48]} h5 {[%emt 0:00:05] [#]} 17. Rf2 $146 {[%emt 0:04:45]} ({Predecessor:} 17. Qxc7 Rxc7 18. Rd6 Ke7 19. Rfd1 Nd7 20. a4 Rhc8 21. R6d3 Nc5 22. R3d2 f6 23. a5 {0-1 (41) Chabris,C (2080)-Seemann,J (2299) Chess.com INT 2021}) 17... Qxd6 {[%emt 0:01:15]} 18. Rxd6 {[%emt 0:00:42]} Ke7 {[%emt 0:01:37] [#]} 19. Rb6 {[%emt 0:06:14]} Rc7 {[%emt 0:01:16]} 20. Nd5+ {[%emt 0:01:33]} Bxd5 {[%emt 0:00:02]} 21. exd5 {[%emt 0:00:08]} Ne8 {[%emt 0:06:11] Prevents d6+.} 22. c4 {[%emt 0:29:31]} Nd6 {[%emt 0:01:20]} 23. Rc2 {[%emt 0:00:32] c5 is the strong threat.} Rhc8 {[%emt 0:00:50]} 24. b3 {[%emt 0:00:21]} Rc5 {[%emt 0:04:14]} 25. Rf2 {[%emt 0:15:36]} R8c7 {[%emt 0:30:54]} (25... f5 $14) 26. Bf1 {[%emt 0:02:07]} ({White should play} 26. h4 $16) 26... a5 {[%emt 0:09:07]} 27. Rd2 {[%emt 0:05:18]} Kd7 {[%emt 0:02:28]} 28. h4 {[%emt 0:01:28] Strongly threatening Bh3+.} e4 {[%emt 0:11:06]} (28... Rc8 $1 $11 {remains equal.}) 29. Kf2 {[%emt 0:03:20]} ({White should try} 29. Rf2 $16) 29... Rc8 $11 {[%emt 0:01:20]} 30. b4 {[%emt 0:04:06]} axb4 {[%emt 0:00:08]} 31. Rxb4 {[%emt 0:00:04]} f5 {[%emt 0:01:57]} (31... Ke7 $11) 32. Rdb2 {[%emt 0:01:23]} ({Better is} 32. a4 $16) 32... Kc7 {[%emt 0:03:16]} (32... Nxc4 $11 33. Rxb7+ R8c7 34. Rxc7+ (34. Bxc4 Rxc4 35. Kf1 Kd6 $11) 34... Rxc7) 33. Be2 $36 {[%emt 0:04:34][%mdl 2048] White has the initiative.} g6 {[%emt 0:00:11]} 34. Rb6 {[%emt 0:03:05]} (34. a4 $16) 34... Ra8 $1 $11 {[%emt 0:02:22]} 35. R6b4 {[%emt 0:01:16]} Ra3 {[%emt 0:06:31]} 36. R4b3 {[%emt 0:00:28]} Ra7 {[%emt 0:01:39]} 37. Rb4 {[%emt 0:00:54]} Nc8 {[%emt 0:00:53]} (37... Ra3 $11 {keeps the balance.}) 38. Bd1 {[%emt 0:00:47]} (38. a4 $16) 38... b6 {[%emt 0:01:44] [#]} (38... Nd6 $11) 39. Bb3 {[%emt 0:00:39]} (39. a4 $1 $16) 39... Ra3 {[%emt 0:00:58]} 40. Ke2 {[%emt 0:01:23]} Rca5 {[%emt 0:00:30]} 41. d6+ {[%emt 0:16:10]} (41. Rb5 $11) 41... Nxd6 $15 {[%emt 0:02:23]} 42. Kd2 {[%emt 0:02:09]} Nb7 {[%emt 0:01:21] Black is more active.} 43. c5 {[%emt 0:01:41]} bxc5 {[%emt 0:01:37]} (43... Nxc5 $17 44. Rc2 Kb7 45. Bd5+ Ka7) 44. Rc2 {[%emt 0:01:06]} Nd6 {[%emt 0:00:50] White must now prevent ...Kd7.} 45. Bg8 $2 {[%emt 0:01:40][%mdl 8192] This costs White the game.} (45. Ke2 $1 $15) 45... Rd3+ $19 {[%emt 0:01:28]} 46. Ke2 {[%emt 0:00:03]} Kd7 {[%emt 0:00:22]} 47. Rb3 {[%emt 0:01:04]} c4 {[%emt 0:00:22]} 48. Rbc3 {[%emt 0:02:39]} Rxc3 {[%emt 0:00:19]} 49. Rxc3 {[%emt 0:00:01]} Rxa2+ {[%emt 0:00:13]} 50. Kf1 {[%emt 0:00:05]} Ra8 {[%emt 0:01:07]} 51. Bh7 {[%emt 0:00:29]} (51. Bd5 Rc8 52. Ke1) 51... Rh8 {[%emt 0:01:38]} 52. Bxg6 {[%emt 0:00:09]} Rh6 {[%emt 0:00:04] Weighted Error Value: White=0.51/Black=0.23 (precise)} 0-1

[Event "Krakow Championship-A 2022"]
[Site "Krakow"]
[Date "2022.06.28"]
[Round "5.12"]
[White "Paszewski, Mateusz"]
[Black "Skytte, Rasmus"]
[Result "1/2-1/2"]
[ECO "A20"]
[WhiteElo "2286"]
[BlackElo "2357"]
[Annotator "TA"]
[PlyCount "41"]
[EventDate "2022.06.25"]
[EventType "swiss"]
[EventCountry "POL"]
[SourceTitle "playchess.com"]
[Source "ChessBase"]
[SourceQuality "1"]
[TimeControl "40/5400+30:1800+30"]

{[%evp 11,28,14,11,24,23,30,79,76,57,43,44,38,41,40,43,46,59,63,58]} 1. c4 e5 {[%emt 0:02:44]} 2. g3 {[%emt 0:00:09]} Nf6 {[%emt 0:00:44]} 3. Bg2 {[%emt 0:00:04]} d5 {[%emt 0:02:27]} 4. cxd5 {[%emt 0:00:41]} Nxd5 {[%emt 0:00:40]} 5. Nf3 {[%emt 0:00:06]} Nc6 {[%emt 0:00:14]} 6. O-O {[%emt 0:00:05]} Nb6 {[%emt 0:00:56]} 7. b3 {[%emt 0:00:16] A20: English Opening: 1...e5.} Be7 {[%emt 0:02:06] 7...Be6 deserves study.} 8. Bb2 {[%emt 0:00:11]} Bf6 {[%emt 0:00:57]} (8... f6 $11 {should be considered.}) 9. Nc3 $16 {[%emt 0:02:26] White is better.} Bf5 {[%emt 0:01:05] Inhibits Ne4.} 10. d3 {[%emt 0:01:29] Against e4. White is slightly better.} O-O {[%emt 0:03:57]} 11. Ne4 {[%emt 0:16:29]} Bxe4 {[%emt 0:02:24]} 12. dxe4 {[%emt 0:00:58]} Qe7 {[%emt 0:00:21]} 13. Qc2 {[%emt 0:08:36]} a5 {[%emt 0:07:17]} 14. a3 {[%emt 0:01:40]} Rfd8 {[%emt 0:05:39] [#]  Weighted Error Value: White=0.02 (flawless) /Black=0.07 (flawless)} {Predecessor:} 15. e3 $146 Rd6 16. Rfc1 h6 17. Bf1 Rc8 18. Bc3 Qe6 19. Kg2 g6 20. Bb5 Ra8 21. Qb2 {0-1 (49) Labussiere,Y (2065)-Gauche,C (2201) Caioba 2019} 1/2-1/2